Cogmind - Beta 12 @@@ ROGUE MODE // 2024.01.12 @ 01:55:18 Player: morimori Result: Destroyed by H-55 Commando with Gauss Rifle Performance ------------- Evolutions (0) 0 Regions Visited (3) 600 Robots Destroyed (43) 215 Value Destroyed (655) 655 Prototype IDs (4) 80 Alien Tech Used (0) 0 Bonus (300) 300 TOTAL SCORE: 1850 Bonus ------- Aligned with FarCom 300 Cogmind --------- Core Integrity 0/250 Matter 233/300 Energy 100/100 System Corruption 7% Temperature Cool (0) Movement Core (800) Ox15 Location -10/Exiles Parts ------- > --- POWER (1) -------- (None) > --- PROPULSION (2) --- (None) > --- UTILITY (2) ------ High-capacity Storage Unit Target Analyzer > --- WEAPON (2) ------- AWS/Thermal > --- INVENTORY (20) --- Light Ion Engine Improved Heat Sink Small Storage Unit Large Storage Unit Large Matter Pod (150) Structural Scanner Improved Terrain Scanner Improved Terrain Scanner Terrain Scan Processor Beam Rifle Beam Rifle Beam Rifle Beam Rifle YOLO Cannon Assault Rifle Peak State ------------ > --- POWER ------------ (None) > --- PROPULSION ------- Wheel Wheel > --- UTILITY ---------- High-capacity Storage Unit Seismic Detector > --- WEAPON ----------- AWS/Thermal > --- INVENTORY -------- Ion Engine Light Ion Engine Improved Heat Sink Small Storage Unit Large Storage Unit Large Matter Pod Structural Scanner Improved Terrain Scanner Improved Terrain Scanner Terrain Scan Processor Target Analyzer Beam Rifle Beam Rifle Beam Rifle Beam Rifle YOLO Cannon Assault Rifle [Rating: 24] Favorites ----------- Power Ion Engine Engine Ion Engine Propulsion Wheel Wheel Wheel Utility Seismic Detector Device Seismic Detector Storage High-capacity Storage Unit Processor Target Analyzer Weapon Assault Rifle Energy Gun EM Pulse Gun Ballistic Gun Assault Rifle Launcher Grenade Launcher Special Weapon Field Lobotomy Kit Build | -11 -10 -10 -10 ------- Run | Jun Mat Min Exi Slots Evolved . | . . . . Power . | . . . . Propulsion . | . . . . Utility . | . . . . Weapon . | . . . . Parts Attached 30 | 7 9 7 7 Power 4 | 1 2 . 1 Engine 4 | 1 2 . 1 Core . | . . . . Reactor . | . . . . Propulsion 5 | 2 . 2 1 Treads . | . . . . Leg . | . . . . Wheel 5 | 2 . 2 1 Hover . | . . . . Flight . | . . . . Utility 6 | 2 1 1 2 Device 2 | 1 . 1 . Storage 3 | 1 1 . 1 Processor 1 | . . . 1 Hackware . | . . . . Protection . | . . . . Artifact . | . . . . Weapon 15 | 2 6 4 3 Energy Gun 5 | 2 1 . 2 Energy Cannon . | . . . . Ballistic Gun 5 | . 3 2 . Ballistic Cannon . | . . . . Launcher 3 | . 1 2 . Special Weapon 2 | . 1 . 1 Impact Weapon . | . . . . Slashing Weapon . | . . . . Piercing Weapon . | . . . . Special Melee Weapon . | . . . . Unidentified Prototypes 2 | . . . 2 Parts Lost 7 | . 1 . 6 Power 2 | . . . 2 Propulsion 4 | . 1 . 3 Utility 1 | . . . 1 Weapon . | . . . . Highest Loss Streak 3 | . 1 . 3 To Critical Strikes . | . . . . Average Slot Usage (%) 96 | . 99 97 95 Engine 13 | . 14 14 13 Wheel 26 | . 27 25 26 Device 13 | . 14 14 12 Storage 14 | . 14 14 14 Energy Gun 2 | . 3 . 2 Ballistic Gun 24 | . 22 27 23 Naked Turns . | . . . . Heaviest Build 57 | 13 31 31 57 Greatest Support 26 | 26 26 26 26 Greatest Overweight (x) 17 | 1 1 1 17 Average Overweight (x) . | . . 1 1 Largest Inventory Capacity 20 | 8 15 15 20 Average Capacity 15 | 7 9 15 19 Most Carried 20 | 8 14 15 20 Average Carried 13 | 6 9 14 17 Final Capacity 20 | 8 15 15 20 Final Carried 16 | 8 14 15 16 Class Distribution -------------------- 100% | Mutant Dominant Class ---------------- Mutant | -10/Materials Mutant | -10/Mines Mutant | -10/Exiles Resources | -11 -10 -10 -10 ----------- Run | Jun Mat Min Exi Matter Collected 1009 | 279 340 297 93 Remotely . | . . . . Salvage Created 1173 | 311 220 219 423 Parts 85 | 27 20 18 20 Haulers Intercepted 1 | . 1 . . Recyclers Shooed 1 | . . 1 . Parts Field Recycled . | . . . . Retrieved Matter . | . . . . Parts Self-Destructed . | . . . . Prevented . | . . . . Kills | -11 -10 -10 -10 ------- Run | Jun Mat Min Exi Combat Hostiles Destroyed 19 | . 6 4 9 Guns 13 | . 3 1 9 AOE 6 | . 3 3 . Classes Destroyed 11 | 3 4 1 3 Worker 6 | 4 . 2 . Builder 2 | . . 2 . Tunneler 10 | 9 . 1 . Hauler 1 | . 1 . . Recycler 3 | 1 1 1 . Mechanic 1 | . 1 . . Watcher 1 | . 1 . . Swarmer 10 | . 6 4 . Grunt 5 | . . . 5 Hunter 2 | . . . 2 Programmer 2 | . . . 2 Best Kill Streak 6 | 4 4 6 3 Combat Bots Only 3 | . 3 3 3 Max Kills in Single Turn 2 | 2 2 2 1 Gunslinging . | . . . . Exploded 2 | . 1 2 . Melee . | . . . . Uniques/NPCs Destroyed . | . . . . Combat | -11 -10 -10 -10 -------- Run | Jun Mat Min Exi Damage Taken 1184 | 34 182 107 861 Core 253 | 17 37 19 180 Absorbed by Shields . | . . . . Core Remaining (%) 93 | 93 . . . Volleys Fired 67 | 20 24 13 10 Largest 2 | 2 2 2 2 Hottest 100 | 80 100 50 56 Shots Fired 175 | 40 46 27 62 Gun 161 | 40 40 24 57 Cannon . | . . . . Launcher 7 | . 4 3 . Special 7 | . 2 . 5 Kinetic 72 | . 38 24 10 Thermal 49 | . 2 . 47 Explosive 7 | . 4 3 . Electromagnetic 42 | 40 2 . . Robot Hit Streak 10 | 6 7 6 10 Robot Miss Streak 3 | 2 3 2 3 Penetration Max . | . . . . Secondary Targets . | . . . . Autonomous 47 | . . . 47 Shots Hit Robots 114 | 22 29 17 46 Core Hits 53 | 15 13 12 13 Critical Kills . | . . . . Critical Parts Destroyed . | . . . . Critical Strikes 1 | 1 . . . Corrupt 1 | 1 . . . Melee Attacks . | . . . . Impact . | . . . . Slashing . | . . . . Piercing . | . . . . Sneak Attacks . | . . . . Combat Hostiles . | . . . . Follow-up Attacks . | . . . . Damage Inflicted 2564 | 583 588 335 1058 Guns 1935 | 338 323 216 1058 Cannons . | . . . . Explosions 629 | 245 265 119 . Melee . | . . . . Ramming . | . . . . Kinetic 669 | . 323 216 130 Thermal 1173 | 245 . . 928 Explosive 384 | . 265 119 . Electromagnetic 338 | 338 . . . Impact . | . . . . Slashing . | . . . . Piercing . | . . . . Highest Corruption 7 | . 1 1 7 Average Corruption 1 | . 1 1 1 Corruption Purged . | . . . . Corruption Blocked . | . . . . Effects 31 | . 5 6 20 Message Errors 5 | . 2 1 2 Matter Fused 12 | . 1 2 9 Heat Flow Errors 3 | . 1 . 2 Energy Discharges 5 | . 1 1 3 Data Loss (minor) 4 | . . 1 3 Misfires 1 | . . 1 . Alerts 1 | . . . 1 Overload Shots . | . . . . Overflow Damage 28 | 8 20 . . Projectiles . | . . . . Explosions 28 | 8 20 . . Melee . | . . . . Knockbacks . | . . . . Impact . | . . . . Kinetic . | . . . . Secondary . | . . . . Self-Inflicted Damage 74 | 34 . 40 . Shots 3 | 1 . 2 . Rammed . | . . . . Targets Rammed . | . . . . Kicked . | . . . . Crushed . | . . . . Highest Temperature 212 | 72 212 . 133 Average Temperature 37 | 24 62 . 67 Received Heat Transfer 33 | . 21 . 12 Siege Activations . | . . . . Robots Corrupted . | . . . . Combat Hostiles . | . . . . Parts Fried 1 | 1 . . . Impact Corruptions . | . . . . Robots Melted . | . . . . Combat Hostiles . | . . . . Parts Melted . | . . . . Heat Transferred 1410 | 300 . . 1110 Parts Sabotaged . | . . . . Parts Stolen . | . . . . Parts Stripped . | . . . . Power Chain Reactions 4 | 4 . . . Missiles Intercepted . | . . . . Alert | -11 -10 -10 -10 ------- Run | Jun Mat Min Exi Peak Influence 217 | 70 217 166 . Initial 45 | . 45 3 . Average 92 | 33 125 90 . Maximum Alert Level 1 | . 1 . . Low Security (%) 91 | 100 78 100 . Level 1 8 | . 21 . . Level 2 . | . . . . Level 3 . | . . . . Level 4 . | . . . . Level 5 . | . . . . High Security . | . . . . Max Security . | . . . . Squads Dispatched . | . . . . Investigation . | . . . . Extermination . | . . . . Reinforcement . | . . . . Assault . | . . . . Garrison . | . . . . Intercept . | . . . . Searches Triggered . | . . . . Construction Impeded . | . . . . Haulers Reinforced . | . . . . Active Scanning Responses . | . . . . Cargo Convoy Interrupts . | . . . . Stealth | -11 -10 -10 -10 --------- Run | Jun Mat Min Exi Distress Signals 3 | . 3 . . Communications Jammed . | . . . . Distress Signals . | . . . . Times Spotted 40 | . 18 6 16 Peak Tracking Total 5 | . 5 3 4 Tactical Retreats 4 | . 3 1 . Traps | -11 -10 -10 -10 ------- Run | Jun Mat Min Exi Traps Triggered 1 | . 1 . . Indirectly . | . . . . Trap Hack Attempts . | . . . . Triggered . | . . . . Disarmed . | . . . . Reprogrammed . | . . . . Reused . | . . . . Traps Extracted . | . . . . Installed . | . . . . Triggered 1 | . . 1 . Exploded 1 | . . . 1 Machines | -11 -10 -10 -10 ---------- Run | Jun Mat Min Exi Machines Disabled 5 | . 2 . 3 Max in Single Turn 1 | . 1 . 1 Machines Repaired . | . . . . Machines Sabotaged . | . . . . Overloaded Fab Kills . | . . . . Hacking | -11 -10 -10 -10 --------- Run | Jun Mat Min Exi Machines Accessed 11 | . 6 1 4 Terminals 6 | . 5 1 . Fabricators . | . . . . Repair Stations . | . . . . Recycling Units 1 | . 1 . . Scanalyzers . | . . . . Garrison Access . | . . . . Total Hacks 72 | . 21 2 49 Successful 63 | . 13 1 49 Failed 8 | . 7 1 . Catastrophic . | . . . . Database Lockouts 1 | . 1 . . Manual 16 | . 15 . 1 Terminals 21 | . 19 2 . Fabricators . | . . . . Repair Stations . | . . . . Recycling Units 2 | . 2 . . Scanalyzers . | . . . . Garrison Access . | . . . . Terminal Hacks 58 | . 8 1 49 Record 49 | . . . 49 Part Schematic 2 | . 2 . . Prototype ID Bank 1 | . 1 . . Unreport Threat 2 | . 2 . . Locate Traps 1 | . 1 . . Zone Layout 3 | . 2 1 . Fabricator Hacks . | . . . . Repair Station Hacks . | . . . . Recycling Unit Hacks 1 | . 1 . . Retrieve Components 1 | . 1 . . Scanalyzer . | . . . . Garrison Access Hacks . | . . . . Unauthorized Hacks 4 | . 4 . . Terminals 4 | . 4 . . Botnet 4 | . 4 . . Fabricators . | . . . . Repair Stations . | . . . . Recycling Units . | . . . . Scanalyzers . | . . . . Garrison Access . | . . . . Data Cores Recovered . | . . . . Used . | . . . . Hacking Detections 4 | . 3 1 . Full Trace Events . | . . . . Feedback Events . | . . . . Feedback Blocked . | . . . . Robot Schematics Acquired . | . . . . Robots Built . | . . . . Authchips . | . . . . Time . | . . . . Total Robot Build Rating . | . . . . Part Schematics Acquired 2 | . 2 . . Parts Built . | . . . . Authchips . | . . . . Time . | . . . . Total Part Build Rating . | . . . . Parts Repaired . | . . . . Time . | . . . . Parts Recycled . | . . . . Recycled Matter . | . . . . Retrieved Matter . | . . . . Retrieved Components 2 | . 2 . . Parts Scanalyzed . | . . . . Part Schematics Acquired . | . . . . Parts Damaged . | . . . . Bothacking | -11 -10 -10 -10 ------------ Run | Jun Mat Min Exi Used RIF Installer . | . . . . Robots Hacked . | . . . . Non-combat . | . . . . Combat . | . . . . Robot Hacks Applied . | . . . . Relay Couplers Released . | . . . . Fabnet Peak Effective % . | . . . . Robots Rewired . | . . . . Allies Hacked . | . . . . Hacks Repelled . | . . . . Allies | -11 -10 -10 -10 -------- Run | Jun Mat Min Exi Total Allies 5 | . . . 5 Largest Group 2 | . . . 2 Highest-Rated Group 55 | . . . 55 Highest-Rated Ally 37 | . . . 37 Total Orders . | . . . . Ally Attacks 8 | . . . 8 Total Damage 82 | . . . 82 Kills . | . . . . Allies Corrupted . | . . . . Allies Melted . | . . . . Field Lobotomies 5 | . . . 5 Intel | -11 -10 -10 -10 ------- Run | Jun Mat Min Exi Robot Analysis Total . | . . . . Derelict Logs Recovered 1 | . . 1 . Drone Launches . | . . . . Drone Recoveries . | . . . . Exploration | -11 -10 -10 -10 ------------- Run | Jun Mat Min Exi Turns Passed 2766 | 315 610 548 1293 Spaces Moved 2030 | 170 538 451 871 Core 10 | 1 . . 9 Treads . | . . . . Legs . | . . . . Wheels 2020 | 169 538 451 862 Hover . | . . . . Flight . | . . . . Fastest Speed 50 | 50 90 105 105 Average Speed 104 | 89 92 106 112 Slowest Speed 900 | 95 115 115 900 Overloaded Moves . | . . . . Propulsion Burnouts . | . . . . Robots Hopped . | . . . . Cave-ins Triggered . | . . . . Exploration Rate (%) 55 | 5 68 55 94 Regions Visited 3 Branch Regions 2 Pre-discovered Areas 1 | . . . 1 Known Exits Taken 1 | . . 1 . Unknown Exits Taken 2 | 1 1 . . Scrap Searched 1 | . . 1 . Spaces Dug 2 | . 2 . . Terrain Destroyed 59 | 12 16 22 9 Melee . | . . . . Projectile 11 | . 2 . 9 AOE 48 | 12 14 22 . Terrain Rammed . | . . . . Walls Destroyed . | . . . . Machines Disabled . | . . . . Actions | -11 -10 -10 -10 --------- Run | Jun Mat Min Exi Total 2550 | 297 598 492 1163 Wait 367 | 80 13 17 257 Move 2027 | 169 537 450 871 Hop . | . . . . Pick Up 33 | 15 8 2 8 Fast Attach 10 | 6 2 1 1 Attach 5 | 1 . . 4 Detach 2 | . . . 2 Swap 15 | . 7 6 2 Drop 23 | 6 7 3 7 Fire 67 | 20 24 13 10 Melee . | . . . . Ram . | . . . . Kick . | . . . . Crush . | . . . . Escape Stasis . | . . . . Rewire 1 | . . . 1 Trap . | . . . . Miscellaneous . | . . . . Route ------- -11/Junkyard -10/Materials (discovered 4 exits: [*Mat x2] / *Min x2) -10/Mines (discovered 3 exits: [*Mat x2] / *Exi) -10/Exiles (discovered 2 exits: [*Min x2]) History --------- Turn | Location | Event 17 | -11/Junkyard | Discovered new exit (range 15) 316 | -11/Junkyard | Entered Materials 317 | -10/Materials | Build established: Mutant 398 | -10/Materials | Discovered new exit (range 13) 399 | -10/Materials | Discovered new exit (range 15) 626 | -10/Materials | Discovered new exit (range 14) 762 | -10/Materials | Discovered new exit (range 4) 912 | -10/Materials | Central database locked down 926 | -10/Materials | Entered Mines 1064 | -10/Mines | Discovered new exit (range 14) 1113 | -10/Mines | Identified exit to Exiles 1450 | -10/Mines | Discovered new exit (range 10) 1469 | -10/Mines | Deemed a non-threat by the Exiles lab entrance 1474 | -10/Mines | Entered Exiles 1492 | -10/Exiles | Discovered new exit (range 15) 1524 | -10/Exiles | Met 8R-AWN 1541 | -10/Exiles | Met EX-HEX 1592 | -10/Exiles | Met EX-DEC 1603 | -10/Exiles | Learned location of Zion (-7) 1709 | -10/Exiles | Visited The Gauntlet 1879 | -10/Exiles | Discovered new exit (range 14) 1966 | -10/Exiles | Met EX-BIN 2074 | -10/Exiles | Aligned with FarCom system 2075 | -10/Exiles | Given EX-Vault access code 2100 | -10/Exiles | Opened EX-Vault 2106 | -10/Exiles | Found Prototype Special Weapon 2110 | -10/Exiles | Found Prototype Energy Cannon 2119 | -10/Exiles | Found Prototype Energy Gun 2144 | -10/Exiles | Warned to stay clear of 0b10 Research branches 2147 | -10/Exiles | Exiles lab attacked by MAIN.C 2604 | -10/Exiles | Identified Field Lobotomy Kit 2614 | -10/Exiles | Assimilated P-60 Hacker with FLK Orb 2619 | -10/Exiles | Assimilated L-31 Rogue with FLK Orb 2626 | -10/Exiles | Assimilated G-34 Mercenary with FLK Orb 2631 | -10/Exiles | Assimilated G-34 Mercenary with FLK Orb 2634 | -10/Exiles | Assimilated H-55 Commando with FLK Orb 2640 | -10/Exiles | Identified AWS/Thermal 2663 | -10/Exiles | Core integrity fell below 50% 2675 | -10/Exiles | Lost 3 parts (1p1n1u) 2732 | -10/Exiles | Core integrity fell below 20% 2733 | -10/Exiles | Lost 3 parts (1p2n) 2767 | -10/Exiles | Destroyed by H-55 Commando with Gauss Rifle Last Messages --------------- 02644_ Seismic Detector destroyed. 02646_ G-34 Mercenary destroyed. 02649_ Slug penetrates Wall. 02655_ Penetrated by Slug. 02659_ H-55 Commando destroyed. 02677_ Wheel destroyed. 02683_ G-34 Mercenary destroyed. 02697_ System corrupted: Energy discharge (-97). 02702_ Ion Engine destroyed. 02707_ G-34 Mercenary destroyed. 02708_ Destroyed Shock Rifle. 02727_ System corrupted: Matter fused (-6). 02731_ Machine disabled. 02731_ Penetrated by Slug. 02733_ H-55 Commando destroyed. 02747_ System corrupted: Heat flow error (+121). 02755_ G-34 Mercenary destroyed. 02756_ P-60 Hacker destroyed. 02759_ AWS/Thermal suddenly breaks down. 02760_ Penetrated by Slug. Map ----- +----------------------------------------------------+ | ?????????????????????????????????????????????????? | | ?????????????????????????????????????????????????? | | ?????????????????????????????????????????????????? | | ?????????????????????????????????????????????????? | | ?????????????????????????????????????????????????? | | ???????#####?????????????????????????????????????? | | ??????## ##????????????????????????????????????? | | ??????# #????????????????????????????????????? | | ??????# < #????????????????????????????????????? | | ??????# ] ###??????????????????????????????????? | | ??????# #??????????????????????????????????? | | ??????# ##??????????????????????????????????? | | ??????## #???????????????????????????????????? | | ???????# ##??????????????????????????????????? | | ???????## =#????????????#######???????????????? | | ????????# [ #######??????#!!! "#???????????????? | | ????????# #""##?????# "#???????????????? | | ????????## #?????# "#???????????????? | | ?????????##" ##???## ""#??????????###### | | ?????????#"" #####" ""#??????????# "" | | ?????????#### ##" ""#??????????#"" "" | | ????????????## #"" #????????????#"" | | ?????????????# ## ##???????????#"" | | ?????????????####### ;#???????????#"" | | ???????????????????##; * #???????????# " | | ?????????????########" @%%= ###?????????#"" " | | ?????????????# !!""""" !=%= | ##????????### # | | ?????????????#! ";;; =%[ ######???### # | | ?????????????#! "##;# =%[=[ " #####X# # | | ?????????????#! ##?## =[%!%| g | | ?????????????# !""""""###???#"#==![h | | ?????????????##########?????#### | | ???????????????????????????????##; % | | ????????????????????????????????##"; [=% | | ??????????????????????????????????### %%!! | | ????????????????????????????????????##=!== | | ?????????????????????????????????????##[% | | ??????????????????????????????????????#"% | | ?????????????????????????????????????##" | | ?????????????????????????????????????#"" | | ????????????????????????????????????##""" | | ????????????????????????????????????#""" | | ????????????????????????????????????#""" | | ????????????????????????????????????#"" | | ????????????????????????????????????#""" | | ????????????????????????????????????#"" | | ????????????????????????????????????##"" | | ?????????????????????????????????????#"""" | | ?????????????????????????????????????## | | ??????????????????????????????????????#" | +----------------------------------------------------+ Best States ------------- Heat Dissipation 25 Energy Generation 10 Energy Capacity 250 Matter Stores 300 Matter Capacity 300 Sight Range 16 Terrain Scan Density 10 Evasion (%) 42 Target Analysis 5 Item Schematics ----------------- Lrg. Storage Unit | -10/Materials | Hacked Structural Scanner | -10/Materials | Hacked Robot Schematics ------------------ None Fabricated ------------ Nothing Alien Tech Used ----------------- None Achievements -------------- Quantum Hacking True Hacker Challenges ------------ None Game ------ Seed DiametricNeutronBoosters Manual? 0 Play Time 00:35:38 Cumulative 114.5 hours Start 2024.01.12 @ 01:18:19 End 2024.01.12 @ 01:55:18 Sessions 1 Manual Loads 0 Difficulty Rogue Special Mode None Game No. 73 Rogue 73 Adventurer 0 Explorer 0 Win Type - Total 1 Types 1/0/0/0/0/0/0/0/0 Lore% 41 Gallery% 44 Achievement% 38 Wizard Run 0 Options --------- ASCII 0 Keyboard 1 Movement Vi Keybinds 0 Fullscreen 2 Font 18/SmallcapsGlow Map View 76x50 Tactical HUD 1 Map Filters NONE Filters NONE Steam 1 RUN: 0bee3789-c28a-4d53-b4cf-e5dabc601af3